bitfinex/quotes_BTCUSD_20251102
["timestamp","ask_amount","ask_price","bid_price","bid_amount"]
[1762087619359,0.6762554,110970.0,110960.0,0.00061849]
[1762087621023,0.75213983,110970.0,110960.0,0.00061849]
[1762087621368,0.66232082,110970.0,110960.0,0.01724849]
[1762087621580,0.63002957,110970.0,110960.0,0.23197362]
[1762087621790,0.63002957,110970.0,110960.0,0.25906286]
[1762087622478,0.42558225,110970.0,110960.0,0.25906286]
[1762087622603,0.26060483,110970.0,110960.0,0.25906286]
[1762087622802,0.60060483,110970.0,110960.0,0.25906286]
[1762087623023,0.42037594,110970.0,110960.0,0.25906286]
[1762087623944,0.60060483,110970.0,110960.0,0.25906286]
[1762087624124,0.42037594,110970.0,110960.0,0.25906286]
[1762087625073,0.38419366,110970.0,110960.0,0.25906286]
[1762087625481,0.36481891,110970.0,110960.0,0.25906286]
[1762087625665,0.348,110970.0,110960.0,0.25906286]
[1762087626175,0.342,110970.0,110960.0,0.25906286]
[1762087626350,0.346,110970.0,110960.0,0.26606286]
[1762087626590,0.344,110970.0,110960.0,0.26606286]
[1762087626978,0.346,110970.0,110960.0,0.26606286]
[1762087629377,0.52622889,110970.0,110960.0,0.26606286]
[1762087629656,0.346,110970.0,110960.0,0.26606286]
[1762087632141,0.346,110970.0,110960.0,0.23897362]
[1762087632780,0.57885498,110970.0,110960.0,0.23897362]
[1762087632994,0.52622889,110970.0,110960.0,0.23897362]
[1762087633963,0.52622889,110970.0,110960.0,0.05872849]
[1762087634157,0.56241117,110970.0,110960.0,0.01959849]
[1762087634988,0.57919487,110970.0,110960.0,0.00761849]
[1762087635237,0.70056174,110970.0,110960.0,0.00761849]
[1762087635432,0.72997821,110970.0,110960.0,0.00761849]
[1762087635970,0.72597821,110970.0,110960.0,0.00061849]
[1762087636193,0.73297821,110970.0,110960.0,0.00561849]
[1762087636390,0.73297821,110970.0,110960.0,0.00661849]
[1762087636391,0.73497821,110970.0,110960.0,0.00661849]
[1762087636794,0.60872617,110970.0,110960.0,0.02324849]
[1762087637013,0.60872617,110970.0,110960.0,0.00661849]
[1762087638349,0.65903274,110970.0,110960.0,0.00661849]
[1762087641035,0.69132399,110970.0,110960.0,0.00661849]
[1762087642095,0.69132456,110970.0,110960.0,0.00661849]
[1762087642307,0.78114357,110970.0,110960.0,0.00661849]
[1762087642805,0.8082377,110970.0,110960.0,0.00661849]
[1762087646335,1.0553377,110970.0,110960.0,0.00661849]
[1762087648958,1.05525734,110970.0,110960.0,0.00661849]
[1762087649821,1.03110666,110970.0,110960.0,0.00661849]
[1762087650149,0.83644344,110970.0,110960.0,0.00661849]
[1762087650982,0.80115227,110970.0,110960.0,0.00161849]
[1762087651202,1.02334174,110970.0,110960.0,0.00161849]
[1762087651404,0.7972536,110970.0,110960.0,0.00161849]
[1762087651603,1.0102536,110970.0,110960.0,0.00461849]
[1762087651806,0.95981673,110970.0,110960.0,0.00361849]
[1762087652214,0.96481673,110970.0,110960.0,0.00361849]
[1762087652353,0.99088146,110970.0,110960.0,0.00361849]
[1762087652552,1.03931833,110970.0,110960.0,0.00361849]
[1762087652784,0.21647615,110930.0,110920.0,0.01289]
[1762087652983,0.21647615,110930.0,110920.0,0.00048]
[1762087653352,0.24187023,110930.0,110920.0,0.01709]
[1762087653984,0.59674013,110930.0,110920.0,0.00296307]
[1762087655195,0.59874013,110930.0,110920.0,0.00296307]
[1762087658036,0.66087082,110930.0,110920.0,0.00296307]
[1762087658441,0.66087082,110930.0,110920.0,0.00383741]
[1762087658739,0.68797382,110930.0,110920.0,0.00383741]
[1762087659214,0.91210868,110930.0,110920.0,0.00383741]
[1762087659450,0.88597382,110930.0,110920.0,0.00383741]
[1762087659708,0.87997382,110930.0,110920.0,0.00183741]
[1762087659918,0.90610868,110930.0,110920.0,0.00183741]
[1762087660130,0.91110868,110930.0,110920.0,0.00183741]
[1762087660547,0.90610868,110930.0,110920.0,0.00183741]
[1762087660888,0.91310868,110930.0,110920.0,0.00183741]
[1762087661127,0.91110868,110930.0,110920.0,0.00183741]
[1762087661361,4.40368084,110930.0,110920.0,1e-08]
[1762087661610,0.75650867,110910.0,110900.0,0.0004]
[1762087661833,0.88237023,110910.0,110900.0,0.00048718]
[1762087662081,0.90845837,110910.0,110900.0,0.00048718]
[1762087662314,0.90845837,110910.0,110900.0,0.0009245]
[1762087662315,0.93556864,110910.0,110900.0,0.0009245]
[1762087663160,0.93856864,110910.0,110900.0,0.0009245]
[1762087663856,0.7124805,110910.0,110900.0,0.0009245]
[1762087664319,0.74357644,110910.0,110900.0,0.0009245]
[1762087664543,0.76966458,110910.0,110900.0,0.0009245]
[1762087665687,0.76366458,110910.0,110900.0,0.0009245]
[1762087665893,0.79279251,110910.0,110900.0,0.0009245]
[1762087666138,0.80279251,110910.0,110900.0,0.0009245]
[1762087666381,0.98066457,110910.0,110900.0,0.0009245]
[1762087666618,0.98566457,110910.0,110900.0,0.0009245]
[1762087667050,1.0177925,110910.0,110900.0,0.0009245]
[1762087667752,0.98566457,110910.0,110900.0,0.0009245]
[1762087670629,0.98566457,110910.0,110890.0,0.03028821]
[1762087670843,1.07635184,110900.0,110890.0,0.03028821]
[1762087671050,1.17967057,110900.0,110890.0,0.03028821]
[1762087671282,0.75654119,110890.0,110880.0,0.0004]
[1762087671498,0.84863608,110890.0,110880.0,0.0004]
[1762087671958,0.87575275,110890.0,110880.0,0.0004]
[1762087672187,0.90281635,110890.0,110880.0,0.0004]
[1762087672403,0.21632891,110890.0,110880.0,0.0004]
[1762087672593,0.55632891,110890.0,110880.0,0.0004]
[1762087672839,0.59251119,110890.0,110880.0,0.0004]
[1762087673024,0.59751119,110890.0,110880.0,0.0004]
[1762087673253,0.60451119,110890.0,110880.0,0.0004]
[1762087673435,0.6943302,110890.0,110880.0,0.0004]
[1762087673787,0.58528914,110890.0,110880.0,0.01701]
[1762087673986,0.36874795,110890.0,110880.0,0.23423518]
[1762087674203,0.02374795,110890.0,110880.0,0.23423518]
[1762087674408,0.02674795,110890.0,110880.0,0.23423518]
[1762087675233,0.02374795,110890.0,110880.0,0.23423518]
[1762087675454,0.01674795,110890.0,110880.0,0.2796493]
[1762087675656,0.01874795,110890.0,110880.0,0.23423518]
[1762087675784,0.02474795,110890.0,110880.0,0.23623518]
[1762087675982,0.008,110890.0,110880.0,0.23623518]
[1762087677232,0.008,110890.0,110880.0,0.32198686]
[1762087677447,0.008,110890.0,110880.0,0.37717615]
[1762087677864,0.008,110890.0,110880.0,0.37761359]
[1762087679126,0.008,110890.0,110880.0,0.37561359]
[1762087679354,0.002,110890.0,110880.0,0.37561359]
[1762087679552,0.008,110890.0,110880.0,0.37861359]
[1762087680335,0.006,110890.0,110880.0,0.37861359]
[1762087680537,0.008,110890.0,110880.0,0.38361359]
[1762087682794,0.008,110890.0,110880.0,0.41071223]
[1762087683180,1e-08,110890.0,110880.0,0.41071223]
[1762087683415,1e-08,110890.0,110880.0,0.42071222]
[1762087685357,1e-08,110890.0,110880.0,0.41071223]
[1762087688739,1e-08,110890.0,110880.0,0.26977126]
[1762087690853,1e-08,110890.0,110880.0,0.35552294]
[1762087692415,1e-08,110890.0,110880.0,0.3284243]
[1762087697212,1e-08,110890.0,110880.0,0.35552316]
[1762087702167,1e-08,110890.0,110880.0,3.08559916]
[1762087702378,1e-08,110890.0,110880.0,3.19541815]
[1762087703024,1e-08,110890.0,110880.0,3.26009018]
[1762087703467,4.823e-05,110910.0,110900.0,0.19034264]
[1762087703677,4.823e-05,110910.0,110900.0,0.30360432]
[1762087703854,4.823e-05,110910.0,110900.0,0.32766432]
[1762087704012,4.823e-05,110910.0,110900.0,0.38069117]
[1762087704236,4.823e-05,110910.0,110900.0,0.40778486]
[1762087704678,0.00304823,110910.0,110900.0,0.41378486]
[1762087704889,0.00304823,110910.0,110900.0,0.40378487]
[1762087705186,0.00304823,110910.0,110900.0,0.41378486]
[1762087705416,0.00304823,110910.0,110900.0,0.40378487]
[1762087705613,0.00304823,110910.0,110900.0,0.41378486]
[1762087705834,0.00404823,110910.0,110900.0,0.41778486]
[1762087706173,0.00404823,110910.0,110900.0,0.40778487]
[1762087721852,0.00404823,110910.0,110900.0,0.41778486]
[1762087722610,0.38509526,110950.0,110940.0,0.18027762]
[1762087722816,0.40234344,110950.0,110940.0,0.2175962]
[1762087723045,0.40234344,110950.0,110940.0,0.2422962]
[1762087724058,0.58660481,110950.0,110940.0,0.2432962]
[1762087724449,0.59760481,110950.0,110940.0,0.2462962]
[1762087724662,0.41734344,110950.0,110940.0,0.2462962]
[1762087727336,0.43667748,110950.0,110940.0,0.2462962]
[1762087728177,0.41734344,110950.0,110940.0,0.2462962]
[1762087728387,0.04116116,110950.0,110940.0,0.2462962]
[1762087728793,0.03224818,110950.0,110940.0,0.2462962]
[1762087729798,0.01548369,110950.0,110940.0,0.2462962]
[1762087731650,0.02445546,110950.0,110940.0,0.2462962]
[1762087733724,0.20471683,110950.0,110940.0,0.23656762]
[1762087734638,0.20471683,110950.0,110940.0,0.05629]
[1762087736015,0.02445546,110950.0,110940.0,0.23656762]
[1762087743550,0.01548369,110950.0,110940.0,0.23656762]
[1762087745179,0.02445094,110950.0,110940.0,0.23656762]
[1762087747376,0.02445094,110950.0,110940.0,0.27949429]
[1762087753994,0.20471231,110950.0,110940.0,0.27949429]
[1762087754199,0.20471231,110950.0,110940.0,0.09921667]
[1762087754361,0.20471231,110950.0,110940.0,0.27949429]
[1762087755199,0.20471231,110950.0,110940.0,0.23656762]
[1762087755405,0.20471231,110950.0,110940.0,0.05629]
[1762087756731,0.20471231,110950.0,110940.0,0.23656762]
[1762087757348,0.20471231,110950.0,110940.0,0.05629]
[1762087757733,0.20471231,110950.0,110940.0,0.23656762]
[1762087759023,0.20471231,110950.0,110940.0,0.05629]
[1762087759434,0.56152153,110950.0,110940.0,0.05629]
[1762087759850,0.59770381,110950.0,110940.0,0.23656762]
[1762087760063,0.59770381,110950.0,110940.0,0.05629]
[1762087760267,0.59770381,110950.0,110940.0,0.23656762]
[1762087761641,0.59770381,110950.0,110940.0,0.05629]
[1762087762047,0.67820784,110950.0,110940.0,0.03159]
[1762087762306,0.59770381,110950.0,110940.0,0.03159]
[1762087762530,0.64415812,110950.0,110940.0,0.03159]
[1762087763502,0.64415812,110950.0,110940.0,0.004]
[1762087763706,0.64936106,110950.0,110940.0,0.004]
[1762087763905,0.67354494,110950.0,110940.0,0.004]
[1762087764109,0.76336395,110950.0,110940.0,0.004]
[1762087766722,0.73918007,110950.0,110940.0,0.004]
[1762087767107,0.76336395,110950.0,110940.0,0.004]
[1762087768291,0.73918007,110950.0,110940.0,0.004]
[1762087769968,0.73397713,110950.0,110940.0,0.004]
[1762087772204,0.73392903,110950.0,110940.0,0.004]
[1762087783956,0.64411002,110950.0,110940.0,0.23522762]
[1762087784345,0.42766637,110950.0,110940.0,0.23522762]
[1762087784778,0.44448725,110950.0,110940.0,0.23522762]
[1762087785417,0.46380975,110950.0,110940.0,0.23522762]
[1762087785596,0.44448725,110950.0,110940.0,0.23522762]
[1762087785999,0.42772613,110950.0,110940.0,0.23522762]
[1762087789538,0.42772613,110950.0,110940.0,0.27793371]
[1762087789539,0.39154385,110950.0,110940.0,0.27793371]
[1762087789742,0.36445094,110950.0,110940.0,0.27793371]
[1762087790167,0.02445094,110950.0,110940.0,0.27793371]
[1762087792326,0.02445094,110950.0,110940.0,0.23522762]
[1762087795653,0.01548369,110950.0,110940.0,0.23522762]
[1762087798614,0.19574506,110950.0,110940.0,0.05495]
[1762087798815,0.23192734,110950.0,110940.0,0.03124]
[1762087798999,0.57192734,110950.0,110940.0,0.03124]
[1762087799211,0.650748,110950.0,110940.0,0.03124]
[1762087799403,0.650748,110950.0,110940.0,0.004]
[1762087799603,0.67784189,110950.0,110940.0,0.004]
[1762087799805,0.69459789,110950.0,110940.0,0.004]
[1762087800018,0.71389989,110950.0,110940.0,0.004]
[1762087800637,0.74080032,110950.0,110940.0,0.004]
[1762087801486,0.740798,110950.0,110940.0,0.004]
[1762087805427,0.77016895,110950.0,110940.0,0.004]
[1762087805626,0.77808982,110950.0,110940.0,0.004]
[1762087806049,0.77408982,110950.0,110940.0,0.003]
[1762087806263,0.78308982,110950.0,110940.0,0.004]
[1762087806658,0.79620289,110950.0,110940.0,0.001]
[1762087806862,0.81220289,110950.0,110940.0,0.005]
[1762087809997,0.75319771,110950.0,110940.0,0.005]
[1762087810821,0.78009814,110950.0,110940.0,0.005]
[1762087817708,0.81220289,110950.0,110940.0,0.005]
[1762087818350,0.78009814,110950.0,110940.0,0.005]
[1762087820706,0.75319771,110950.0,110940.0,0.005]
[1762087826348,0.78530246,110950.0,110940.0,0.005]
[1762087826846,0.75319771,110950.0,110940.0,0.005]
[1762087827356,0.78530246,110950.0,110940.0,0.005]
[1762087828368,0.76118939,110950.0,110940.0,0.005]
[1762087828570,0.78531364,110950.0,110940.0,0.005]
[1762087829506,0.76118939,110950.0,110940.0,0.005]
[1762087830339,0.70650169,110950.0,110940.0,0.005]
[1762087830581,0.63821466,110950.0,110940.0,0.02163]
[1762087830792,0.33439694,110950.0,110940.0,0.02163]
[1762087831013,0.64507691,110950.0,110940.0,0.02163]
[1762087831192,0.64507691,110950.0,110940.0,0.20190762]
[1762087831438,0.64507691,110950.0,110940.0,0.21383762]
[1762087831668,0.60889463,110950.0,110940.0,0.21383762]
[1762087831915,0.64507691,110950.0,110940.0,0.03356]
[1762087832341,0.73091654,110950.0,110940.0,0.03356]
[1762087834054,0.73091654,110950.0,110940.0,0.21383762]
[1762087835477,0.73091654,110950.0,110940.0,0.03356]
[1762087835689,0.73091654,110950.0,110940.0,0.21383762]
[1762087836089,0.46481554,110950.0,110940.0,0.23806762]
[1762087836430,0.43772165,110950.0,110940.0,0.23806762]
[1762087836638,0.61798302,110950.0,110940.0,0.005]
[1762087837036,0.60198302,110950.0,110940.0,0.001]
[1762087837273,0.34,110940.0,110930.0,0.19222327]
[1762087837466,0.52027762,110940.0,110930.0,0.21645327]
[1762087837717,0.52027762,110940.0,110930.0,0.23308327]
[1762087838539,0.34,110940.0,110930.0,0.23308327]
[1762087838823,0.52027762,110940.0,110930.0,0.23308327]
[1762087840278,0.53227762,110940.0,110930.0,0.23708387]
[1762087841569,0.53227762,110940.0,110930.0,0.05679]
[1762087842028,0.53227762,110940.0,110930.0,0.23708387]
[1762087842754,0.352,110940.0,110930.0,0.23708387]
[1762087844362,0.53227762,110940.0,110930.0,0.23708387]
[1762087844842,0.352,110940.0,110930.0,0.23708387]
[1762087845053,0.012,110940.0,110930.0,0.23708387]
[1762087845373,0.012,110940.0,110930.0,0.28091774]
[1762087845928,0.012,110940.0,110930.0,0.21285387]
[1762087846134,0.012,110940.0,110930.0,0.23708387]
[1762087850670,0.002,110940.0,110930.0,0.23408387]
[1762087850850,0.002,110940.0,110930.0,0.24308387]
[1762087851082,0.003,110940.0,110930.0,0.24208387]
[1762087851308,0.004,110940.0,110930.0,0.29899291]
[1762087879163,0.004,110940.0,110930.0,0.6489929]
[1762087879541,0.004,110940.0,110930.0,0.67607696]
[1762087879970,0.004,110940.0,110930.0,0.63899291]
[1762087883904,0.004,110940.0,110930.0,0.64788731]
[1762087886001,0.004,110940.0,110930.0,0.29899291]
[1762087899887,0.004,110940.0,110930.0,0.24608387]
[1762087900659,0.54783659,110950.0,110940.0,0.18027762]
[1762087900856,0.54783659,110950.0,110940.0,0.23128762]
[1762087901303,0.54783619,110950.0,110940.0,0.23128762]
[1762087901439,0.36757482,110950.0,110940.0,0.23128762]
[1762087901838,0.36757482,110950.0,110940.0,0.23428762]
[1762087901839,0.37657482,110950.0,110940.0,0.23428762]
[1762087902644,0.37857482,110950.0,110940.0,0.23528762]
[1762087902838,0.55883619,110950.0,110940.0,0.23528762]
[1762087903475,0.37857482,110950.0,110940.0,0.23528762]
[1762087905821,0.55883619,110950.0,110940.0,0.23528762]
[1762087918575,0.37857482,110950.0,110940.0,0.23528762]
[1762087924804,0.55883619,110950.0,110940.0,0.23528762]
[1762087925853,0.03857482,110950.0,110940.0,0.27803877]
[1762087926076,0.01148369,110950.0,110940.0,0.27803877]
[1762087927158,0.00248369,110950.0,110940.0,0.27503877]
[1762087927315,0.00048369,110950.0,110940.0,0.27403877]
[1762087927555,0.00348369,110950.0,110940.0,0.27703877]
[1762087927725,0.00448369,110950.0,110940.0,0.28003877]
[1762087928570,0.00448369,110950.0,110940.0,0.36579045]
[1762087935990,0.00448369,110950.0,110940.0,0.39287451]
[1762087948928,0.00448369,110950.0,110940.0,0.73287451]
[1762087958269,0.52923822,110990.0,110960.0,0.18925738]
[1762087958451,0.58237554,110990.0,110980.0,0.02865]
[1762087958839,0.58237554,110990.0,110980.0,0.05272]
[1762087959203,0.60174026,110990.0,110980.0,0.02865]
[1762087959419,0.18021265,110980.0,110970.0,0.19263889]
[1762087959629,0.18021265,110980.0,110970.0,0.23671317]
[1762087959830,0.18021265,110980.0,110970.0,0.04865428]
[1762087960679,0.18021265,110980.0,110970.0,0.07272428]
[1762087961399,0.19321265,110980.0,110970.0,0.07672428]
[1762087961609,0.21402431,110980.0,110970.0,0.03365]
[1762087962545,0.21402431,110980.0,110970.0,0.05772]
[1762087964175,0.21402431,110980.0,110970.0,0.03365]
[1762087964821,0.59020659,110980.0,110970.0,0.03365]
[1762087965030,0.69939266,110980.0,110970.0,0.005]
[1762087965235,0.70459072,110980.0,110970.0,0.005]
[1762087965437,0.73167874,110980.0,110970.0,0.005]
[1762087967313,0.73167672,110980.0,110970.0,0.005]
[1762087967529,0.64185771,110980.0,110970.0,0.005]
[1762087969421,0.6418422,110980.0,110970.0,0.005]
[1762087970408,0.63664616,110980.0,110970.0,0.005]
[1762087970620,0.63664616,110980.0,110970.0,0.02007]
[1762087971592,0.63664616,110980.0,110970.0,0.20029889]
[1762087971794,0.63664616,110980.0,110970.0,0.21218889]
[1762087972003,0.63664616,110980.0,110970.0,0.23674889]
[1762087972668,0.6172791,110980.0,110970.0,0.23674889]
[1762087973081,0.40088417,110980.0,110970.0,0.23674889]
[1762087973281,0.357,110980.0,110970.0,0.2796372]
[1762087973667,0.357,110980.0,110970.0,0.23674889]
[1762087979686,0.53721265,110980.0,110970.0,0.23674889]
[1762087979902,0.53721265,110980.0,110970.0,0.21218889]
[1762087980266,0.53721265,110980.0,110970.0,0.23611889]
[1762087984172,0.53721265,110980.0,110970.0,0.18522889]
[1762087984381,0.53721265,110980.0,110970.0,0.02083]
[1762087988501,0.55401842,110980.0,110970.0,0.02083]
[1762087989370,0.55401842,110980.0,110970.0,0.005]
[1762087994094,0.5902007,110980.0,110970.0,0.005]
[1762087994310,0.686611,110980.0,110970.0,0.005]
[1762087994519,0.71369694,110980.0,110970.0,0.005]
[1762087995152,0.63664892,110980.0,110970.0,0.005]
[1762087997790,0.6366539,110980.0,110970.0,0.005]
[1762087997998,0.6366539,110980.0,110970.0,0.00410347]
[1762087999429,0.64185251,110980.0,110970.0,0.00410347]
[1762087999653,0.64185247,110980.0,110970.0,0.00410347]
[1762088000241,0.7221969,110980.0,110970.0,0.00410347]
[1762088000455,0.72739583,110980.0,110970.0,0.00410347]
[1762088001466,0.7221969,110980.0,110970.0,0.00410347]
[1762088001624,0.72739594,110980.0,110970.0,0.00410347]
[1762088003106,0.7221969,110980.0,110970.0,0.00410347]
[1762088003605,0.6366539,110980.0,110970.0,0.00410347]
[1762088009642,0.64185367,110980.0,110970.0,0.00410347]
[1762088010754,0.6366539,110980.0,110970.0,0.00410347]
[1762088013293,0.64185486,110980.0,110970.0,0.00410347]
[1762088022288,0.66605316,110980.0,110970.0,0.00410347]
[1762088022907,0.75480687,110980.0,110970.0,0.00410347]
[1762088043746,0.66605316,110980.0,110970.0,0.00410347]
[1762088047274,0.64185486,110980.0,110970.0,0.00410347]
[1762088048484,0.64186713,110980.0,110970.0,0.02062347]
[1762088048689,0.64186713,110980.0,110970.0,0.00410347]
[1762088050695,0.66608532,110980.0,110970.0,0.00410347]
[1762088050910,0.75484225,110980.0,110970.0,0.00410347]
[1762088051527,0.72775631,110980.0,110970.0,0.00410347]
[1762088053879,0.63899938,110980.0,110970.0,0.02062347]
[1762088054064,0.39838626,110980.0,110970.0,0.23623236]
[1762088054305,0.3931853,110980.0,110970.0,0.23623236]
[1762088055262,0.37381075,110980.0,110970.0,0.23623236]
[1762088055464,0.37381075,110980.0,110970.0,0.26331549]
[1762088057426,0.357,110980.0,110970.0,0.26331549]
[1762088058715,0.357,110980.0,110970.0,0.30889132]
[1762088061488,0.357,110980.0,110970.0,0.26331549]
[1762088063012,0.017,110980.0,110970.0,0.26331549]
[1762088063757,0.017,110980.0,110970.0,0.0830866]
[1762088063969,0.017,110980.0,110970.0,0.26331549]
[1762088064276,0.19721265,110980.0,110970.0,0.26331549]
[1762088064877,0.19721265,110980.0,110970.0,0.30889132]
[1762088065457,0.017,110980.0,110970.0,0.30889132]
[1762088065642,0.19721265,110980.0,110970.0,0.12866243]
[1762088066054,0.19721265,110980.0,110970.0,0.0597366]
[1762088066796,0.55400625,110980.0,110970.0,0.0597366]
[1762088067696,0.53721265,110980.0,110970.0,0.0597366]
[1762088068013,0.55400911,110980.0,110970.0,0.0597366]
[1762088068342,0.5540104,110980.0,110970.0,0.0597366]
[1762088069705,0.5540104,110980.0,110970.0,0.0838266]
[1762088070533,0.66453161,110980.0,110970.0,0.0311866]
[1762088070730,0.68388362,110980.0,110970.0,0.00410347]
[1762088073099,0.68388362,110980.0,110970.0,0.02056347]
[1762088073305,0.68388362,110980.0,110970.0,0.03272347]
[1762088074297,0.60954469,110980.0,110970.0,0.03272347]
[1762088077427,0.60954469,110980.0,110970.0,0.00410347]
[1762088078456,0.60954469,110980.0,110970.0,0.02056347]
[1762088079683,0.60954469,110980.0,110970.0,0.03272347]
[1762088082175,0.60954469,110980.0,110970.0,0.00410347]
[1762088082374,0.69705851,110980.0,110970.0,0.00410347]
[1762088082586,0.7212767,110980.0,110970.0,0.00410347]
[1762088086200,0.7212767,110980.0,110970.0,0.00382347]
[1762088089621,0.69705851,110980.0,110970.0,0.00382347]
[1762088090235,0.61474433,110980.0,110970.0,0.01985347]
[1762088090578,0.60954469,110980.0,110970.0,0.01985347]
[1762088091615,0.60954469,110980.0,110970.0,0.03130347]
[1762088091831,0.60954469,110980.0,110970.0,0.05560347]
[1762088092484,0.60954469,110980.0,110970.0,0.23583236]
[1762088092930,0.60954469,110980.0,110970.0,0.05560347]
[1762088094334,0.60954469,110980.0,110970.0,0.23583236]
[1762088097301,0.59274694,110980.0,110970.0,0.23583236]
[1762088097511,0.60955811,110980.0,110970.0,0.23583236]
[1762088097718,0.60955811,110980.0,110970.0,0.05560347]
[1762088097919,0.60955811,110980.0,110970.0,0.23583236]
[1762088099359,0.42934546,110980.0,110970.0,0.23583236]
[1762088100326,0.60955811,110980.0,110970.0,0.23583236]
[1762088100532,0.42934546,110980.0,110970.0,0.23583236]
[1762088100680,0.60955811,110980.0,110970.0,0.23583236]
[1762088100903,0.5902061,110980.0,110970.0,0.23583236]
[1762088101089,0.60957572,110980.0,110970.0,0.23583236]
[1762088101558,0.42936307,110980.0,110970.0,0.23583236]
[1762088101775,0.60957572,110980.0,110970.0,0.23583236]
[1762088102131,0.68947118,110980.0,110970.0,0.23583236]
[1762088102598,0.50925853,110980.0,110970.0,0.23583236]
[1762088102902,0.42936307,110980.0,110970.0,0.23583236]
[1762088103995,0.40999345,110980.0,110970.0,0.23583236]
[1762088104208,0.37381117,110980.0,110970.0,0.23583236]
[1762088104568,0.017,110980.0,110970.0,0.26291598]
[1762088105381,0.004,110980.0,110970.0,0.26009251]
[1762088105812,0.014,110980.0,110970.0,0.30827087]
[1762088106037,0.01,110980.0,110970.0,0.30727087]
[1762088106251,0.52937883,110990.0,110970.0,0.30427087]
[1762088106504,0.52937883,110990.0,110980.0,0.23130265]
[1762088107119,0.52937883,110990.0,110980.0,0.07817103]
[1762088107322,0.54619166,110990.0,110980.0,0.07817103]
[1762088107541,0.54619166,110990.0,110980.0,0.02708103]
[1762088108000,0.54619166,110990.0,110980.0,0.04312103]
[1762088108229,0.55719166,110990.0,110980.0,0.04312103]
[1762088108581,0.54619166,110990.0,110980.0,0.05487103]
[1762088109155,0.57319166,110990.0,110980.0,0.08317103]
[1762088109381,0.53537883,110990.0,110980.0,0.07917103]
[1762088109619,0.55218572,110990.0,110980.0,0.05209]
[1762088109845,0.57318572,110990.0,110980.0,0.05609]
[1762088110258,0.56718572,110990.0,110980.0,0.05509]
[1762088110471,0.55037883,110990.0,110980.0,0.05509]
[1762088110670,0.55637883,110990.0,110980.0,0.05609]
[1762088112347,0.57318128,110990.0,110980.0,0.05609]
[1762088112750,0.57318128,110990.0,110980.0,0.03279]
[1762088114107,0.65122566,110990.0,110980.0,0.01675]
[1762088117005,0.65122566,110990.0,110980.0,0.03279]
[1762088118069,0.57318128,110990.0,110980.0,0.03279]
[1762088118483,0.5731896,110990.0,110980.0,0.03279]
[1762088122163,0.59256591,110990.0,110980.0,0.03279]
[1762088122828,0.5731896,110990.0,110980.0,0.05609]
[1762088126658,0.5925882,110990.0,110980.0,0.05609]
[1762088132469,0.5925882,110990.0,110980.0,0.23630265]
[1762088134281,0.41239179,110990.0,110980.0,0.23630265]
[1762088134505,0.39300868,110990.0,110980.0,0.23630265]
[1762088135178,0.03618242,110990.0,110980.0,0.23630265]
[1762088135600,0.00918242,110990.0,110980.0,0.23130265]
[1762088136035,0.02118242,110990.0,110980.0,0.23430265]
[1762088138325,0.20137883,110990.0,110980.0,0.05391]
[1762088138532,0.24073911,110990.0,110980.0,0.03079]
[1762088138704,0.21821456,110990.0,110980.0,0.03079]
[1762088139040,0.21821456,110990.0,110980.0,0.05391]
[1762088140112,0.55821456,110990.0,110980.0,0.03079]
[1762088140330,0.57761104,110990.0,110980.0,0.03079]
[1762088142258,0.57761104,110990.0,110980.0,0.21100265]
[1762088142411,0.57761104,110990.0,110980.0,0.05391]
[1762088147763,0.57761232,110990.0,110980.0,0.05391]
[1762088154486,0.57761232,110990.0,110980.0,0.25214391]
[1762088154699,0.55821456,110990.0,110980.0,0.23412265]
[1762088154912,0.55821456,110990.0,110980.0,0.05391]
[1762088155094,0.55821456,110990.0,110980.0,0.25214391]
[1762088155292,0.55821456,110990.0,110980.0,0.23412265]
[1762088155547,0.55821456,110990.0,110980.0,0.05391]
[1762088155757,0.55821456,110990.0,110980.0,0.07193126]
[1762088155956,0.55821456,110990.0,110980.0,0.05391]
[1762088156427,0.57761473,110990.0,110980.0,0.05391]
[1762088156696,0.69284414,110990.0,110980.0,0.003]
[1762088156923,0.71705958,110990.0,110980.0,0.003]
[1762088158735,0.55639493,110980.0,110970.0,0.01145]
[1762088158942,0.59263083,110980.0,110970.0,0.02724]
[1762088160541,0.60463083,110980.0,110970.0,0.03124]
[1762088161264,0.60863083,110980.0,110970.0,0.03224]
[1762088162703,0.60863083,110980.0,110970.0,0.05551]
[1762088162921,0.60860806,110980.0,110970.0,0.05551]
[1762088163347,0.58923066,110980.0,110970.0,0.05551]
[1762088163587,0.55304838,110980.0,110970.0,0.26045939]
[1762088163790,0.53621265,110980.0,110970.0,0.26045939]
[1762088164674,0.53621265,110980.0,110970.0,0.23573889]
[1762088165833,0.53621265,110980.0,110970.0,0.05551]
[1762088166384,0.55303275,110980.0,110970.0,0.05551]
[1762088169327,0.57241039,110980.0,110970.0,0.05551]
[1762088169740,0.60859267,110980.0,110970.0,0.005]
[1762088169944,0.68838982,110980.0,110970.0,0.005]
[1762088171899,0.71547583,110980.0,110970.0,0.005]
[1762088172559,0.71547583,110980.0,110970.0,0.02079]
[1762088172993,0.71547583,110980.0,110970.0,0.005]
[1762088173448,0.71547139,110980.0,110970.0,0.005]
[1762088173851,0.71547139,110980.0,110970.0,0.02079]
[1762088176308,0.63567424,110980.0,110970.0,0.03262]
[1762088180685,0.63567424,110980.0,110970.0,0.005]
[1762088180909,0.63567424,110980.0,110970.0,0.02079]
[1762088182190,0.63567424,110980.0,110970.0,0.005]
[1762088182312,0.69491352,110980.0,110970.0,0.005]
[1762088182510,0.78473253,110980.0,110970.0,0.005]
[1762088182944,0.73074912,110980.0,110970.0,0.005]
[1762088185138,0.75496562,110980.0,110970.0,0.005]
[1762088185354,0.73074912,110980.0,110970.0,0.005]
[1762088186112,0.75496562,110980.0,110970.0,0.005]
[1762088186955,0.74970975,110980.0,110970.0,0.005]
[1762088187157,0.75496846,110980.0,110970.0,0.005]
[1762088188315,0.75497899,110980.0,110970.0,0.005]
[1762088194721,0.73076249,110980.0,110970.0,0.005]
[1762088195442,0.75497899,110980.0,110970.0,0.005]
[1762088196476,0.73076249,110980.0,110970.0,0.005]
[1762088197185,0.75497899,110980.0,110970.0,0.005]
[1762088198752,0.66515998,110980.0,110970.0,0.02106]
[1762088198952,0.64094348,110980.0,110970.0,0.03316]
[1762088199155,0.64094348,110980.0,110970.0,0.0571]
[1762088199781,0.64094348,110980.0,110970.0,0.23732889]
[1762088200083,0.64094348,110980.0,110970.0,0.0571]
[1762088200280,0.72960784,110980.0,110970.0,0.0571]
[1762088200668,0.46073083,110980.0,110970.0,0.23732889]